fUST/lending_fUST_20250927
["ID","MTS","AMOUNT","RATE_DAILY","PERIOD"]
[387849873,1758928255049,-189.687631,0.0004144,120]
[387849874,1758928255060,-189.687631,0.0004144,120]
[387849875,1758928255069,-609.978067,0.0004144,120]
[387849876,1758928255078,-189.687631,0.0004144,120]
[387849877,1758928255087,-189.687631,0.0004144,120]
[387849878,1758928255097,-609.978067,0.0004144,120]
[387849879,1758928255106,-609.978067,0.0004144,120]
[387849880,1758928255115,-609.978067,0.0004144,120]
[387849881,1758928255125,-1133.495777,0.0004144,120]
[387849882,1758928255134,-1133.495777,0.0004144,120]
[387849883,1758928255143,-211.677145,0.0004144,120]
[387849884,1758928255152,-1133.495777,0.0004144,120]
[387849885,1758928255161,-211.677145,0.0004144,120]
[387849886,1758928255170,-1133.495777,0.0004144,120]
[387849887,1758928255179,-653.025076,0.0004144,120]
[387849888,1758928255190,-211.677145,0.0004144,120]
[387849889,1758928255199,-151.0,0.0004144,120]
[387849890,1758928255208,-653.025076,0.0004144,120]
[387849891,1758928255218,-211.677145,0.0004144,120]
[387849892,1758928255228,-653.025076,0.0004144,120]
[387849893,1758928255238,-653.025076,0.0004144,120]
[387849894,1758928255247,-4769.754188,0.0004144,120]
[387849895,1758928255258,-4769.754188,0.0004144,120]
[387849896,1758928255268,-202.443215,0.0004144,120]
[387849897,1758928255278,-4769.754188,0.0004144,120]
[387849898,1758928255287,-198.0,0.0004144,120]
[387849899,1758928255296,-349.78532049,0.00041452,30]
[387849900,1758928255306,-100000.0,0.000415,26]
[387849901,1758928255316,-500.0,0.00041644,120]
[387849902,1758928255325,-349.78532049,0.00041644,30]
[387849903,1758928255335,-175.80869951,0.00041766,120]
[387849904,1758928255344,-349.78532049,0.00041836,30]
[387849905,1758928255354,-600.0,0.00041917,60]
[387849906,1758928255363,-500.0,0.00041918,120]
[387849907,1758928255373,-200.0,0.00041949,120]
[387849908,1758928255383,-274.55268585,0.00041978,38]
[387849909,1758928255392,-39372.92923628,0.00042,2]
[387849910,1758928255401,-5000.0,0.00042,100]
[387849911,1758928255411,-79347.97218726,0.00042,26]
[387849912,1758928255421,-100000.0,0.00042,26]
[387849913,1758928255430,-349.78532049,0.00042027,30]
[387849914,1758928255439,-999.0,0.00042191,120]
[387849915,1758928255449,-500.0,0.00042192,120]
[387849916,1758928255458,-100000.0,0.000422,26]
[387849917,1758928255467,-151.0,0.0004229,120]
[387849918,1758928255478,-200.0,0.00042294,120]
[387849919,1758928255487,-23616.42,0.000424,26]
[387849920,1758928255497,-175.80869951,0.000424,120]
[387849921,1758928255506,-4587.0,0.00042402,120]
[387849922,1758928255515,-600.0,0.00042465,60]
[387849923,1758928255525,-500.0,0.00042466,120]
[387849924,1758928255534,-3369.6540979,0.00042488,2]
[387849925,1758928255543,-6013.11612884,0.000425,3]
[387849926,1758928255554,-1478825.17669579,0.000425,2]
[387849927,1758928256033,-6825.43711839,0.000425,2]
[387849928,1758928256045,-594734.80614312,0.000425,2]
[387849929,1758928256056,-183.918253,0.000425,120]
[387849930,1758928256065,-183.918253,0.000425,120]
[387849931,1758928256074,-183.918253,0.000425,120]
[387849932,1758928256084,-183.918253,0.000425,120]
[387849933,1758928256093,-151.0,0.000425,120]
[387849934,1758928256103,-151.0,0.000425,120]
[387849935,1758928256112,-151.0,0.000425,120]
[387849936,1758928256121,-151.0,0.000425,120]
[387849937,1758928256131,-151.0,0.000425,120]
[387849938,1758928256141,-151.0,0.000425,120]
[387849939,1758928256151,-181.873877,0.000425,120]
[387849940,1758928256160,-181.873877,0.000425,120]
[387849941,1758928256170,-181.873877,0.000425,120]
[387849942,1758928256180,-181.873877,0.000425,120]
[387849943,1758928256190,-151.0,0.000425,120]
[387849944,1758928256200,-151.0,0.000425,120]
[387849945,1758928256210,-173.84455,0.000425,120]
[387849946,1758928256220,-173.84455,0.000425,120]
[387849947,1758928256230,-173.84455,0.000425,120]
[387849948,1758928256240,-173.84455,0.000425,120]
[387849949,1758928256250,-151.0,0.000425,120]
[387849950,1758928256259,-220.388684,0.000425,120]
[387849951,1758928256268,-220.388684,0.000425,120]
[387849952,1758928256277,-220.388684,0.000425,120]
[387849953,1758928256287,-220.388684,0.000425,120]
[387849954,1758928256296,-151.0,0.000425,120]
[387849955,1758928256305,-151.0,0.000425,120]
[387849956,1758928256315,-151.0,0.000425,120]
[387849957,1758928256324,-151.0,0.000425,120]
[387849958,1758928256333,-151.0,0.000425,120]
[387849959,1758928256343,-151.0,0.000425,120]
[387849960,1758928256352,-151.0,0.000425,120]
[387849961,1758928256362,-285.590794,0.000425,120]
[387849962,1758928256371,-1169.273359,0.000425,120]
[387849963,1758928256381,-1169.273359,0.000425,120]
[387849964,1758928256390,-1169.273359,0.000425,120]
[387849965,1758928256399,-1169.273359,0.000425,120]
[387849966,1758928256408,-151.0,0.000425,30]
[387849967,1758928256417,-166.1,0.000425,120]
[387849968,1758928256427,-166.1,0.000425,120]
[387849969,1758928256436,-166.1,0.000425,120]
[387849970,1758928256445,-166.1,0.000425,120]
[387849971,1758928256455,-151.0,0.000425,30]
[387849972,1758928256464,-151.0,0.000425,30]
[387849973,1758928256474,-151.0,0.000425,30]
[387849974,1758928256483,-250.279243,0.000425,120]
[387849975,1758928256492,-151.0,0.000425,30]
[387849976,1758928256502,-151.0,0.000425,120]
[387849977,1758928256511,-250.279243,0.000425,120]
[387849978,1758928256521,-250.279243,0.000425,120]
[387849979,1758928256531,-151.0,0.000425,120]
[387849980,1758928256541,-250.279243,0.000425,120]
[387849981,1758928256551,-151.0,0.000425,120]
[387849982,1758928256560,-151.0,0.000425,120]
[387849983,1758928256575,-189.445687,0.000425,120]
[387849984,1758928256584,-273.204504,0.000425,120]
[387849985,1758928256594,-189.445687,0.000425,120]
[387849986,1758928256603,-189.445687,0.000425,120]
[387849987,1758928256614,-189.445687,0.000425,120]
[387849988,1758928256623,-398.993343,0.000425,120]
[387849989,1758928256633,-398.993343,0.000425,120]
[387849990,1758928256642,-398.993343,0.000425,120]
[387849991,1758928256653,-398.993343,0.000425,120]
[387849992,1758928256663,-151.0,0.000425,120]
[387849993,1758928256672,-151.0,0.000425,120]
[387849994,1758928256681,-151.0,0.000425,120]
[387849995,1758928256691,-179.648857,0.000425,120]
[387849996,1758928256701,-179.648857,0.000425,120]
[387849997,1758928256711,-179.648857,0.000425,120]
[387849998,1758928256720,-179.648857,0.000425,120]
[387849999,1758928256730,-151.343002,0.000425,120]
[387850000,1758928256740,-350.404037,0.000425,120]
[387850001,1758928256749,-350.404037,0.000425,120]
[387850002,1758928256758,-151.0,0.000425,120]
[387850003,1758928256768,-350.404037,0.000425,120]
[387850004,1758928256777,-236.210897,0.000425,120]
[387850005,1758928256786,-350.404037,0.000425,120]
[387850006,1758928256796,-236.210897,0.000425,120]
[387850007,1758928256805,-153.421757,0.000425,120]
[387850008,1758928256815,-236.210897,0.000425,120]
[387850009,1758928256824,-153.421757,0.000425,120]
[387850010,1758928256834,-153.421757,0.000425,120]
[387850011,1758928256844,-151.0,0.000425,120]
[387850012,1758928256853,-236.210897,0.000425,120]
[387850013,1758928256862,-153.421757,0.000425,120]
[387850014,1758928256871,-151.0,0.000425,120]
[387850015,1758928256881,-265.449494,0.000425,120]
[387850016,1758928256890,-265.449494,0.000425,120]
[387850017,1758928256900,-265.449494,0.000425,120]
[387850018,1758928256909,-265.449494,0.000425,120]
[387850019,1758928256918,-167.202201,0.000425,120]
[387850020,1758928256927,-1992.402611,0.000425,120]
[387850021,1758928256937,-167.202201,0.000425,120]
[387850022,1758928256946,-1992.402611,0.000425,120]
[387850023,1758928256956,-167.202201,0.000425,120]
[387850024,1758928256966,-1992.402611,0.000425,120]
[387850025,1758928256976,-167.202201,0.000425,120]
[387850026,1758928256985,-1992.402611,0.000425,120]
[387850027,1758928256995,-304.576171,0.000425,120]
[387850028,1758928257005,-151.0,0.000425,120]
[387850029,1758928257014,-151.0,0.000425,120]
[387850030,1758928257024,-304.576171,0.000425,120]
[387850031,1758928257034,-151.0,0.000425,120]
[387850032,1758928257043,-304.576171,0.000425,120]
[387850033,1758928257054,-304.576171,0.000425,120]
[387850034,1758928257063,-151.0,0.000425,120]
[387850035,1758928257072,-151.0,0.000425,120]
[387850036,1758928257082,-151.0,0.000425,120]
[387850037,1758928257091,-223.369718,0.000425,120]
[387850038,1758928257101,-285.252871,0.000425,120]
[387850039,1758928257111,-156.486716,0.000425,120]
[387850040,1758928257120,-156.486716,0.000425,120]
[387850041,1758928257129,-156.486716,0.000425,120]
[387850042,1758928257138,-151.0,0.000425,120]
[387850043,1758928257148,-156.486716,0.000425,120]
[387850044,1758928257157,-151.0,0.000425,120]
[387850045,1758928257167,-151.0,0.000425,120]
[387850046,1758928257176,-151.0,0.000425,120]
[387850047,1758928257186,-151.0,0.000425,120]
[387850048,1758928257196,-188.779854,0.000425,120]
[387850049,1758928257206,-188.779854,0.000425,120]
[387850050,1758928257215,-188.779854,0.000425,120]
[387850051,1758928257224,-188.779854,0.000425,120]
[387850052,1758928257234,-151.0,0.000425,120]
[387850053,1758928257243,-151.0,0.000425,120]
[387850054,1758928257252,-308.085155,0.000425,120]
[387850055,1758928257262,-151.0,0.000425,120]
[387850056,1758928257272,-308.085155,0.000425,120]
[387850057,1758928257282,-308.085155,0.000425,120]
[387850058,1758928257291,-308.085155,0.000425,120]
[387850059,1758928257301,-151.0,0.000425,120]
[387850060,1758928257311,-151.0,0.000425,120]
[387850061,1758928257320,-151.0,0.000425,120]
[387850062,1758928257330,-823.515026,0.000425,15]
[387850063,1758928257339,-823.515026,0.000425,15]
[387850064,1758928257349,-823.515026,0.000425,15]
[387850065,1758928257358,-823.515026,0.000425,15]
[387850066,1758928257367,-1000.0,0.000425,120]
[387850067,1758928257377,-1000.0,0.000425,120]
[387850068,1758928257387,-1000.0,0.000425,120]
[387850069,1758928257396,-1000.0,0.000425,120]
[387850070,1758928257406,-1000.0,0.000425,120]
[387850071,1758928257415,-1000.0,0.000425,120]
[387850072,1758928257424,-1000.0,0.000425,120]
[387850073,1758928257434,-1000.0,0.000425,120]
[387850074,1758928257444,-1000.0,0.000425,120]
[387850075,1758928257454,-1000.0,0.000425,120]
[387850076,1758928257463,-1000.0,0.000425,120]
[387850077,1758928257472,-1000.0,0.000425,120]
[387850078,1758928257482,-1000.0,0.000425,120]
[387850079,1758928257492,-1000.0,0.000425,120]
[387850080,1758928257501,-1000.0,0.000425,120]
[387850081,1758928257510,-1000.0,0.000425,120]
[387850082,1758928257519,-1000.0,0.000425,120]
[387850083,1758928257529,-429.1003,0.000425,120]
[387850084,1758928257538,-512.387244,0.000425,120]
[387850085,1758928257547,-256.379915,0.000425,120]
[387850086,1758928257556,-512.387244,0.000425,120]
[387850087,1758928257570,-256.379915,0.000425,120]
[387850088,1758928257579,-512.387244,0.000425,120]
[387850089,1758928257588,-256.379915,0.000425,120]
[387850090,1758928257598,-512.387244,0.000425,120]
[387850091,1758928257609,-256.379915,0.000425,120]
[387850092,1758928257618,-151.0,0.000425,120]
[387850093,1758928257628,-288.190399,0.000425,120]
[387850094,1758928257637,-288.190399,0.000425,120]
[387850095,1758928257647,-288.190399,0.000425,120]
[387850096,1758928257656,-288.190399,0.000425,120]
[387850097,1758928257666,-151.0,0.000425,120]
[387850098,1758928257675,-224.845197,0.000425,120]
[387850099,1758928257686,-248.593174,0.000425,120]
[387850100,1758928257695,-248.593174,0.000425,120]
[387850101,1758928257704,-248.593174,0.000425,120]
[387850102,1758928257714,-248.593174,0.000425,120]
[387850103,1758928257724,-151.0,0.000425,120]
[387850104,1758928257733,-151.0,0.000425,120]
[387850105,1758928257743,-202.112772,0.000425,120]
[387850106,1758928257752,-151.0,0.000425,120]
[387850107,1758928257761,-202.112772,0.000425,120]
[387850108,1758928257770,-202.112772,0.000425,120]
[387850109,1758928257780,-226.993008,0.000425,120]
[387850110,1758928257789,-202.112772,0.000425,120]
[387850111,1758928257798,-226.993008,0.000425,120]
[387850112,1758928257808,-226.993008,0.000425,120]
[387850113,1758928257817,-226.993008,0.000425,120]
[387850114,1758928257826,-151.0,0.000425,120]
[387850115,1758928257835,-151.0,0.000425,120]
[387850116,1758928257845,-151.0,0.000425,120]
[387850117,1758928257855,-216.212298,0.000425,120]
[387850118,1758928257864,-151.0,0.000425,120]
[387850119,1758928257873,-151.0,0.000425,120]
[387850120,1758928257883,-151.0,0.000425,120]
[387850121,1758928257892,-151.0,0.000425,120]
[387850122,1758928257901,-151.0,0.000425,120]
[387850123,1758928257910,-151.0,0.000425,30]
[387850124,1758928257920,-152.845452,0.000425,120]
[387850125,1758928257929,-151.0,0.000425,120]
[387850126,1758928257938,-151.0,0.000425,120]
[387850127,1758928257948,-151.0,0.000425,30]
[387850128,1758928258009,-151.0,0.000425,120]
[387850129,1758928258019,-151.0,0.000425,120]
[387850130,1758928258028,-151.0,0.000425,120]
[387850131,1758928258038,-294.352635,0.000425,120]
[387850132,1758928258047,-151.0,0.000425,120]
[387850133,1758928258056,-294.352635,0.000425,120]
[387850134,1758928258065,-151.0,0.000425,120]
[387850135,1758928258075,-151.0,0.000425,120]
[387850136,1758928258085,-294.352635,0.000425,120]
[387850137,1758928258095,-294.352635,0.000425,120]
[387850138,1758928258104,-2846.407671,0.000425,120]
[387850139,1758928258114,-2846.407671,0.000425,120]
[387850140,1758928258124,-151.0,0.000425,120]
[387850141,1758928258133,-2846.407671,0.000425,120]
[387850142,1758928258143,-281.449201,0.000425,120]
[387850143,1758928258152,-2846.407671,0.000425,120]
[387850144,1758928258162,-151.0,0.000425,14]
[387850145,1758928258171,-229.123454,0.000425,120]
[387850146,1758928258181,-168.951759,0.000425,120]
[387850147,1758928258193,-229.123454,0.000425,120]
[387850148,1758928258203,-151.0,0.000425,120]
[387850149,1758928258212,-217.08928,0.000425,120]
[387850150,1758928258221,-217.08928,0.000425,120]
[387850151,1758928258231,-229.123454,0.000425,120]
[387850152,1758928258241,-4489.052787,0.000425,120]
[387850153,1758928258250,-229.123454,0.000425,120]
[387850154,1758928258260,-217.08928,0.000425,120]
[387850155,1758928258270,-4489.052787,0.000425,120]
[387850156,1758928258280,-217.08928,0.000425,120]
[387850157,1758928258290,-4489.052787,0.000425,120]
[387850158,1758928258300,-4489.052787,0.000425,120]
[387850159,1758928258310,-1633.889012,0.000425,120]
[387850160,1758928258320,-1633.889012,0.000425,120]
[387850161,1758928258330,-151.544137,0.000425,120]
[387850162,1758928258339,-1633.889012,0.000425,120]
[387850163,1758928258349,-151.544137,0.000425,120]
[387850164,1758928258359,-1633.889012,0.000425,120]
[387850165,1758928258368,-151.544137,0.000425,120]
[387850166,1758928258378,-151.0,0.000425,120]
[387850167,1758928258388,-151.544137,0.000425,120]
[387850168,1758928258399,-189.687631,0.000425,120]
[387850169,1758928258408,-189.687631,0.000425,120]
[387850170,1758928258418,-189.687631,0.000425,120]
[387850171,1758928258428,-609.978067,0.000425,120]
[387850172,1758928258438,-189.687631,0.000425,120]
[387850173,1758928258449,-609.978067,0.000425,120]
[387850174,1758928258459,-609.978067,0.000425,120]
[387850175,1758928258469,-609.978067,0.000425,120]
[387850176,1758928258479,-1133.495777,0.000425,120]
[387850177,1758928258489,-1133.495777,0.000425,120]
[387850178,1758928258498,-211.677145,0.000425,120]
[387850179,1758928258508,-1133.495777,0.000425,120]
[387850180,1758928258518,-211.677145,0.000425,120]
[387850181,1758928258527,-1133.495777,0.000425,120]
[387850182,1758928258538,-653.025076,0.000425,120]
[387850183,1758928258548,-211.677145,0.000425,120]
[387850184,1758928258558,-151.0,0.000425,120]
[387850185,1758928258572,-653.025076,0.000425,120]
[387850186,1758928258582,-211.677145,0.000425,120]
[387850187,1758928258592,-653.025076,0.000425,120]
[387850188,1758928258602,-653.025076,0.000425,120]
[387850189,1758928258614,-4769.754188,0.000425,120]
[387850190,1758928258624,-4769.754188,0.000425,120]
[387850191,1758928258636,-202.443215,0.000425,120]
[387850192,1758928258646,-4769.754188,0.000425,120]
[387850193,1758928258655,-166.95351001,0.00042507,26]
[387850194,1758928258665,-500.0,0.0004274,120]
[387850195,1758928258675,-2160.0,0.00042779,2]
[387850196,1758928258684,-635.0,0.00042867,2]
[387850197,1758928258694,-164.743299,0.00042974,60]
[387850198,1758928258704,-5000.0,0.00043,100]
[387850199,1758928258720,-69104.66620331,0.00043,120]
[387850200,1758928258730,-600.0,0.00043013,60]
[387850201,1758928258740,-999.0,0.00043013,120]
[387850202,1758928258750,-500.0,0.00043014,120]
[387850203,1758928258760,-500.0,0.00043288,120]
[387850204,1758928258771,-978.0,0.00043356,2]
[387850205,1758928258781,-644.79157611,0.00043399,28]
[387850206,1758928258791,-6566.9452771,0.00043418,2]
[387850207,1758928258801,-274.55268585,0.0004345,42]
[387850208,1758928258811,-1748696.73224929,0.00043499,14]
[387850209,1758928295681,1524.542,0.00026846,120]
[387850212,1758928343937,417.15472785,0.00025205,2]
[387850213,1758928344850,417.15472785,0.00025,30]
[387850214,1758928345298,417.15472785,0.00026,60]
[387850215,1758928364182,834.3094557,0.00025205,2]
[387850218,1758928503103,500.0,0.00025205,4]
[387850219,1758928553518,380.0,0.00024746,2]
[387850237,1758928693834,1000.0,0.00024746,2]
[387850239,1758928858784,300.0,0.000247,2]
[387850240,1758928870726,300.0,0.000247,2]
[387850267,1758928981904,1131.8550929,0.00024577,14]
[387850282,1758929032276,237.54496635,0.0002512,2]
[387850353,1758929253583,-1200.0,0.0002522,2]
[387850354,1758929253605,-488.01603451,0.0002522,2]
[387850355,1758929253629,-458.66992576,0.0002522,2]
[387850356,1758929253653,-500.0,0.0002522,2]
[387850357,1758929253678,-626.80727342,0.0002522,2]
[387850358,1758929253700,-11338.2142757,0.00025221,2]
[387850359,1758929253722,-153.03795191,0.00025372,5]
[387850360,1758929253744,-704.12491267,0.00025543,2]
[387850361,1758929253766,-720.153518,0.00025948,2]
[387850362,1758929253788,-426.16906725,0.00026156,2]
[387850363,1758929253812,-590.74729996,0.00026156,2]
[387850364,1758929253835,-210.47402627,0.00026156,2]
[387850365,1758929253862,-590.74729996,0.00026156,2]
[387850366,1758929253892,-590.74729996,0.00026156,2]
[387850367,1758929253919,-590.74729996,0.00026156,2]
[387850368,1758929253946,-590.74729996,0.00026156,2]
[387850369,1758929253973,-590.74729996,0.00026156,2]
[387850370,1758929254002,-590.74729996,0.00026156,2]
[387850371,1758929254030,-590.74729996,0.00026156,2]
[387850372,1758929254056,-590.74729996,0.00026156,2]
[387850373,1758929254088,-590.74729996,0.00026156,2]
[387850374,1758929254114,-590.74729996,0.00026156,2]
[387850375,1758929254139,-778.43096087,0.00026156,2]
[387850376,1758929254167,-778.43096087,0.00026156,2]
[387850377,1758929254191,-778.43096087,0.00026156,2]
[387850378,1758929254216,-778.43096087,0.00026156,2]
[387850379,1758929254241,-778.43096087,0.00026156,2]
[387850380,1758929254265,-778.43096087,0.00026156,2]
[387850381,1758929254291,-778.43096087,0.00026156,2]
[387850382,1758929254316,-830.32635825,0.00026156,2]
[387850383,1758929254342,-830.32635825,0.00026156,2]
[387850384,1758929254369,-830.32635825,0.00026156,2]
[387850385,1758929254395,-830.32635825,0.00026156,2]
[387850386,1758929254422,-830.32635825,0.00026156,2]
[387850387,1758929254448,-1066.78886463,0.00026156,2]
[387850388,1758929254473,-1066.78886463,0.00026156,2]
[387850389,1758929254497,-50000.0,0.00026157,2]
[387850390,1758929254518,-207.66,0.0002631,2]
[387850391,1758929254540,-500.0,0.00026373,2]
[387850392,1758929254562,-500.0,0.00026373,2]
[387850393,1758929254583,-500.0,0.000264,2]
[387850394,1758929254604,-500.0,0.000264,2]
[387850395,1758929254624,-500.0,0.000264,2]
[387850396,1758929254643,-410.57779206,0.000264,2]
[387850397,1758929254664,-500.0,0.000264,2]
[387850398,1758929254684,-395.021,0.00026546,13]
[387850399,1758929254704,-207.66,0.00026584,2]
[387850400,1758929254724,-21583.1502987,0.0002674,2]
[387850401,1758929254744,-666.0,0.0002675,2]
[387850402,1758929254765,-2224.8776661,0.00026813,2]
[387850403,1758929254785,-207.67475481,0.00026858,2]
[387850404,1758929254805,-1002.66891558,0.00026921,2]
[387850405,1758929254824,-1000.0,0.00026948,2]
[387850406,1758929254845,-1000.0,0.00026948,2]
[387850407,1758929254864,-1000.0,0.00026948,2]
[387850408,1758929254884,-453.90998057,0.00026948,2]
[387850409,1758929254904,-1680.0,0.00027316,2]
[387850410,1758929254929,-151.0,0.000274,16]
[387850411,1758929254949,-955.02379375,0.00027496,5]
[387850412,1758929254969,-1500.0,0.00027496,5]
[387850413,1758929254993,-1510.09024853,0.00027496,5]
[387850414,1758929255014,-151.0,0.000278,11]
[387850415,1758929255034,-2000.0,0.00028044,5]
[387850416,1758929255055,-151.0,0.000283,10]
[387850417,1758929255074,-2500.0,0.00028592,5]
[387850418,1758929255095,-151.0,0.000287,18]
[387850419,1758929255114,-500.9810205,0.00028933,5]
[387850420,1758929255133,-500.0,0.00028933,5]
[387850421,1758929255153,-500.0,0.00028933,5]
[387850422,1758929255173,-500.0,0.00028933,2]
[387850423,1758929255193,-500.0,0.00028933,5]
[387850424,1758929255212,-500.0,0.00028933,5]
[387850425,1758929255232,-500.0,0.00028933,5]
[387850426,1758929255253,-500.0,0.00028933,5]
[387850427,1758929255272,-500.0,0.00028933,2]
[387850428,1758929255292,-501.1278588,0.00028933,5]
[387850429,1758929255312,-500.0,0.00028933,5]
[387850430,1758929255333,-500.0,0.00028933,5]
[387850431,1758929255353,-500.0,0.00028933,5]
[387850432,1758929255374,-500.0,0.00028933,5]
[387850433,1758929255395,-512.24691548,0.00028933,2]
[387850434,1758929255415,-3000.0,0.0002914,5]
[387850435,1758929255436,-151.0,0.000292,18]
[387850436,1758929255455,-1000.0,0.00029481,5]
[387850437,1758929255475,-1000.0,0.00029481,5]
[387850438,1758929255494,-396.36100481,0.00029481,5]
[387850439,1758929255514,-1000.0,0.00029481,5]
[387850440,1758929255534,-1000.0,0.00029481,2]
[387850441,1758929255554,-1012.16892121,0.00029481,5]
[387850442,1758929255575,-1000.0,0.00029481,5]
[387850443,1758929255595,-21583.1502987,0.00029575,2]
[387850444,1758929255616,-1869.0,0.00029585,2]
[387850445,1758929255636,-151.0,0.000296,12]
[387850446,1758929255657,-3049.27066575,0.00029688,5]
[387850447,1758929255677,-260.0,0.00029861,2]
[387850448,1758929255696,-1404.2961185,0.00030029,5]
[387850449,1758929255717,-1500.0,0.00030029,5]
[387850450,1758929255904,-1500.0,0.00030029,5]
[387850451,1758929255932,-1500.0,0.00030029,2]
[387850452,1758929255955,-1500.0,0.00030029,5]
[387850453,1758929255977,-151.0,0.000301,15]
[387850454,1758929256003,-1000.0,0.00030136,120]
[387850455,1758929256031,-500.0,0.000302,5]
[387850456,1758929256051,-500.0,0.000302,5]
[387850457,1758929256074,-501.34391062,0.000302,5]
[387850458,1758929256095,-500.0,0.000302,5]
[387850459,1758929256116,-500.0,0.000302,5]
[387850460,1758929256136,-500.0,0.000302,5]
[387850461,1758929256156,-500.0,0.000302,5]
[387850462,1758929256176,-500.0,0.000302,5]
[387850463,1758929256195,-280.38835653,0.000302,5]
[387850464,1758929256214,-500.0,0.000302,5]
[387850465,1758929256235,-500.0,0.000302,5]
[387850466,1758929256255,-1000.0,0.00030273,120]
[387850467,1758929256276,-1000.0,0.0003041,120]
[387850468,1758929256297,-151.0,0.000305,16]
[387850469,1758929256318,-1000.0,0.00030547,120]
[387850470,1758929256339,-1500.0,0.00030577,5]
[387850471,1758929256358,-500.0,0.00030577,5]
[387850472,1758929256378,-2000.0,0.00030577,2]
[387850473,1758929256399,-1000.0,0.00030577,5]
[387850474,1758929256420,-1000.0,0.00030684,120]
[387850475,1758929256441,-296.33432936,0.00030748,5]
[387850476,1758929256461,-1000.0,0.00030748,5]
[387850477,1758929256481,-500.0,0.00030748,5]
[387850478,1758929256501,-500.0,0.00030748,5]
[387850479,1758929256522,-1000.0,0.00030748,5]
[387850480,1758929256542,-1000.0,0.00030748,5]
[387850481,1758929256562,-1000.0,0.00030748,5]
[387850482,1758929256583,-759.28911623,0.00030748,5]
[387850483,1758929256603,-1000.0,0.00030748,5]
[387850484,1758929256624,-280.0,0.00030821,120]
[387850485,1758929256646,-151.0,0.00031,16]
[387850486,1758929256667,-1006.70609278,0.00031125,2]
[387850487,1758929256687,-1500.0,0.00031296,5]
[387850488,1758929256707,-1500.0,0.00031296,5]
[387850489,1758929256728,-500.0,0.00031296,5]
[387850490,1758929256749,-1414.81986333,0.00031296,5]
[387850491,1758929256769,-1500.0,0.00031296,5]
[387850492,1758929256790,-151.0,0.000315,17]
[387850493,1758929256811,-1028.04723905,0.00031711,3]
[387850494,1758929256833,-604.81936305,0.00031711,3]
[387850495,1758929256853,-1148.19858638,0.00031727,2]
[387850496,1758929256875,-308.74768302,0.00031727,2]
[387850497,1758929256897,-427.15656476,0.00031727,2]
[387850498,1758929256918,-768.88181657,0.00031727,2]
[387850499,1758929256940,-251.26618557,0.00031727,2]
[387850500,1758929256961,-452.27913402,0.00031727,2]
[387850501,1758929256983,-1580.77589593,0.00031727,2]
[387850502,1758929257007,-637.88810355,0.00031727,2]
[387850503,1758929257029,-500.0,0.00031844,5]
[387850504,1758929257050,-500.0,0.00031844,5]